bitfinex/quotes_BTCUSD_20251219
["timestamp","ask_amount","ask_price","bid_price","bid_amount"]
[1766154002543,0.00572,88138.0,88133.0,0.02269297]
[1766154002758,0.00572,88138.0,88132.0,0.41921]
[1766154002759,1.45106,88150.0,88138.0,0.001099]
[1766154002967,0.388,88171.0,88149.0,0.01134442]
[1766154003169,0.388,88171.0,88141.0,0.0025]
[1766154003170,0.01362622,88159.0,88143.0,0.0025]
[1766154003372,0.00572,88158.0,88145.0,0.0025]
[1766154003575,0.00572,88158.0,88141.0,0.06807251]
[1766154003576,0.42042544,88157.0,88138.0,0.0025]
[1766154003786,0.45106,88155.0,88138.0,0.0025]
[1766154004195,0.45106,88155.0,88138.0,0.01384584]
[1766154004410,0.01134249,88164.0,88137.0,0.01706597]
[1766154004411,0.48488,88168.0,88142.0,0.0025]
[1766154004633,0.47344,88170.0,88142.0,0.0025]
[1766154004634,0.04544,88166.0,88157.0,0.05671683]
[1766154004839,0.00572,88165.0,88158.0,0.01134327]
[1766154005044,0.00572,88165.0,88155.0,0.06806164]
[1766154005256,0.00572,88165.0,88150.0,0.2293858]
[1766154005257,0.00572,88165.0,88150.0,0.0025]
[1766154005466,0.47916,88165.0,88150.0,0.0025]
[1766154005709,0.47916,88165.0,88142.0,0.23825045]
[1766154005710,0.47344,88156.0,88142.0,0.0025]
[1766154005908,0.01134339,88157.0,88133.0,0.00572]
[1766154005909,0.01362622,88145.0,88133.0,0.00572]
[1766154006107,0.01362622,88145.0,88127.0,0.01134726]
[1766154006108,0.00572,88144.0,88131.0,0.0025]
[1766154006317,0.00572,88144.0,88131.0,0.01384674]
[1766154006530,0.00572,88144.0,88135.0,0.05673103]
[1766154006744,0.00572,88144.0,88132.0,0.01134661]
[1766154006745,0.47344,88153.0,88132.0,0.01134661]
[1766154006746,0.00572,88152.0,88149.0,0.01134442]
[1766154006980,0.47344,88164.0,88149.0,0.01134442]
[1766154007188,0.47344,88164.0,88151.0,0.01134417]
[1766154007189,0.00572,88163.0,88151.0,0.01134417]
[1766154007392,0.00572,88163.0,88150.0,0.06806556]
[1766154007619,0.00572,88163.0,88150.0,0.02268859]
[1766154007831,0.01362622,88160.0,88150.0,0.02268859]
[1766154008035,0.01362622,88160.0,88146.0,0.0025]
[1766154008036,0.01362622,88160.0,88146.0,0.02518962]
[1766154008273,0.01362622,88160.0,88146.0,0.03653443]
[1766154008475,0.01362622,88160.0,88148.0,0.01134455]
[1766154008687,0.01362622,88160.0,88146.0,0.02518962]
[1766154008893,0.01362622,88160.0,88147.0,0.03403405]
[1766154009517,0.01362622,88160.0,88147.0,0.02268937]
[1766154009940,0.01362622,88160.0,88141.0,0.49426545]
[1766154009941,0.01362622,88160.0,88129.0,0.011347]
[1766154009942,0.47344,88150.0,88129.0,0.011347]
[1766154010151,0.01362622,88146.0,88129.0,0.011347]
[1766154010354,0.01362622,88146.0,88130.0,0.01384687]
[1766154010562,0.01362622,88146.0,88130.0,0.0025]
[1766154010813,0.01362622,88146.0,88131.0,0.06808041]
[1766154011033,0.01362622,88146.0,88130.0,0.0025]
[1766154011034,0.03408107,88149.0,88138.0,0.01134584]
[1766154011242,0.03408107,88149.0,88135.0,0.01384623]
[1766154011243,0.00572,88149.0,88135.0,0.01384623]
[1766154011460,0.01362622,88146.0,88135.0,0.01384623]
[1766154011665,0.02303774,88145.0,88135.0,0.0025]
[1766154012118,0.01952662,88145.0,88135.0,0.0025]
[1766154012326,0.01952662,88145.0,88135.0,0.07057734]
[1766154012527,0.01362622,88146.0,88135.0,0.07057734]
[1766154012729,0.02241074,88145.0,88136.0,0.0113461]
[1766154012959,0.02281124,88144.0,88139.0,0.01134571]
[1766154013180,0.0025,88155.0,88145.0,0.001099]
[1766154013407,0.02488908,88154.0,88139.0,0.01134571]
[1766154013848,0.02488908,88154.0,88141.0,0.01134545]
[1766154013993,0.02488908,88154.0,88140.0,0.0680735]
[1766154014206,0.02488908,88154.0,88138.0,0.06807471]
[1766154014404,0.01362622,88160.0,88138.0,0.22691537]
[1766154014613,0.00010919,88164.0,88160.0,0.001099]
[1766154014837,0.00010919,88164.0,88155.0,0.01134365]
[1766154014838,0.00572,88163.0,88155.0,0.01134365]
[1766154015018,0.00572,88163.0,88159.0,0.05671552]
[1766154015273,0.00572,88163.0,88156.0,0.01134352]
[1766154015274,0.00572,88163.0,88158.0,0.05671618]
[1766154015580,0.00572,88163.0,88156.0,0.01134352]
[1766154015581,0.00572,88163.0,88154.0,0.01294352]
[1766154016477,0.00572,88163.0,88150.0,0.06806533]
[1766154016887,0.00572,88163.0,88151.0,0.01134417]
[1766154017059,0.00572,88163.0,88153.0,0.05671915]
[1766154017262,0.00572,88163.0,88153.0,0.06806306]
[1766154017508,0.00572,88163.0,88154.0,0.01134378]
[1766154017637,0.00572,88163.0,88156.0,0.01134352]
[1766154017840,0.00572,88163.0,88154.0,0.06806268]
[1766154018087,0.00572,88163.0,88150.0,0.01134429]
[1766154018291,0.00572,88163.0,88153.0,0.01134391]
[1766154018490,0.00572,88163.0,88156.0,0.01134352]
[1766154018658,0.00572,88163.0,88153.0,0.06806341]
[1766154018863,0.00572,88163.0,88151.0,0.01134417]
[1766154019208,0.00572,88163.0,88148.0,0.94639]
[1766154019342,0.00572,88163.0,88151.0,0.05672081]
[1766154019744,0.00572,88163.0,88158.0,0.01134327]
[1766154019745,0.004621,88163.0,88158.0,0.01134327]
[1766154019965,0.00010919,88164.0,88157.0,0.01294382]
[1766154020165,0.00010919,88164.0,88154.0,0.0025]
[1766154020166,0.001099,88157.0,88154.0,0.0025]
[1766154020379,0.001099,88157.0,88154.0,0.01384378]
[1766154020580,0.00572,88163.0,88154.0,0.0025]
[1766154020983,0.00572,88163.0,88154.0,0.07056253]
[1766154021224,0.00572,88163.0,88154.0,0.0025]
[1766154021419,0.00572,88163.0,88155.0,0.01134365]
[1766154021665,0.00572,88163.0,88157.0,0.01134339]
[1766154021813,0.00572,88163.0,88156.0,0.01134352]
[1766154022017,0.00572,88163.0,88154.0,0.96023378]
[1766154022018,0.00572,88163.0,88154.0,0.94889]
[1766154022284,0.00572,88163.0,88155.0,0.01134365]
[1766154022485,0.00572,88163.0,88157.0,0.01134339]
[1766154022897,0.00572,88163.0,88154.0,0.0025]
[1766154023220,0.00572,88163.0,88145.0,0.01]
[1766154023221,0.99230622,88160.0,88145.0,0.01]
[1766154023423,0.99230622,88160.0,88137.0,0.50505597]
[1766154023424,0.02835785,88159.0,88137.0,0.50505597]
[1766154023656,0.02835785,88159.0,88130.0,0.01134687]
[1766154023657,0.01362622,88146.0,88132.0,0.01134661]
[1766154023922,0.00572,88145.0,88128.0,0.01134713]
[1766154024122,0.03408235,88145.0,88131.0,0.01134674]
[1766154024333,0.03408235,88145.0,88133.0,0.01134648]
[1766154024542,0.03408235,88145.0,88129.0,0.22693942]
[1766154024741,0.03408235,88145.0,88134.0,0.05673172]
[1766154024986,0.03408235,88145.0,88132.0,0.01134661]
[1766154024987,0.03408235,88145.0,88137.0,0.01134597]
[1766154025206,0.03408235,88145.0,88138.0,0.06807503]
[1766154025679,0.03408235,88145.0,88134.0,0.01134635]
[1766154025880,0.03408235,88145.0,88139.0,0.01134571]
[1766154026122,0.03408235,88145.0,88136.0,0.0113461]
[1766154026326,0.03408235,88145.0,88130.0,0.67961592]
[1766154026327,0.04544,88155.0,88130.0,0.67961592]
[1766154026328,0.04554919,88164.0,88148.0,0.94639]
[1766154026547,0.04554919,88164.0,88148.0,0.45268]
[1766154026548,0.03407656,88163.0,88148.0,0.45268]
[1766154026728,0.03407656,88163.0,88148.0,0.01134455]
[1766154026929,1.01275656,88163.0,88147.0,0.01384468]
[1766154027132,0.9844,88163.0,88148.0,0.01134455]
[1766154027357,0.9844,88163.0,88147.0,0.01384468]
[1766154027730,0.9844,88163.0,88147.0,0.07056807]
[1766154028172,0.9844,88163.0,88148.0,0.01134455]
[1766154028310,0.9844,88163.0,88147.0,0.01384468]
[1766154029206,0.9844,88163.0,88148.0,0.01134455]
[1766154029958,0.9844,88163.0,88147.0,0.07056805]
[1766154030201,0.9844,88163.0,88145.0,0.01384494]
[1766154030202,0.01362622,88155.0,88145.0,0.01384494]
[1766154030355,0.00572,88154.0,88147.0,0.06806773]
[1766154030780,0.00572,88154.0,88147.0,0.0025]
[1766154030960,0.004621,88154.0,88148.0,0.05672256]
[1766154031167,0.004621,88154.0,88149.0,0.01134442]
[1766154031791,0.004621,88154.0,88147.0,0.05922287]
[1766154031792,0.004621,88154.0,88147.0,0.0025]
[1766154032393,0.04554919,88164.0,88147.0,0.0025]
[1766154032394,0.00572,88156.0,88150.0,0.45268]
[1766154032610,0.00572,88156.0,88155.0,0.01134365]
[1766154032819,0.00572,88156.0,88150.0,0.45268]
[1766154033074,0.00572,88156.0,88146.0,0.01134481]
[1766154033380,0.00572,88156.0,88146.0,0.0025]
[1766154033381,0.01362622,88155.0,88146.0,0.0025]
[1766154033799,0.02835946,88154.0,88146.0,0.0025]
[1766154034173,0.01362622,88155.0,88146.0,0.0025]
[1766154034375,0.01362622,88155.0,88143.0,0.0113452]
[1766154034376,0.02835946,88154.0,88143.0,0.0113452]
[1766154034561,0.02835946,88154.0,88144.0,0.0025]
[1766154035323,0.02835946,88154.0,88146.0,0.0025]
[1766154035888,0.01362622,88155.0,88148.0,0.0025]
[1766154036832,0.01362622,88155.0,88147.0,0.0025]
[1766154037971,0.01362622,88155.0,88146.0,0.0025]
[1766154038905,0.001099,88146.0,88140.0,0.01134558]
[1766154039231,0.01236693,88154.0,88141.0,0.01384545]
[1766154039469,0.01751774,88154.0,88141.0,0.0025]
[1766154040517,0.01751774,88154.0,88145.0,0.01134494]
[1766154040717,0.01751774,88154.0,88147.0,0.01134468]
[1766154041060,0.01362622,88155.0,88146.0,0.01134481]
[1766154041261,0.01362622,88155.0,88146.0,0.0680688]
[1766154041463,0.01362622,88155.0,88147.0,0.01134468]
[1766154041669,0.00572,88156.0,88153.0,0.05671938]
[1766154041845,0.00572,88155.0,88154.0,0.01134378]
[1766154042235,0.00572,88155.0,88154.0,0.0680627]
[1766154042467,0.01513726,88164.0,88154.0,0.0680627]
[1766154042468,0.00010919,88164.0,88155.0,0.01134365]
[1766154042679,0.00572,88163.0,88155.0,0.06806081]
[1766154042894,0.00572,88162.0,88154.0,0.06806222]
[1766154043286,0.00572,88162.0,88155.0,0.01134365]
[1766154043702,0.00572,88162.0,88150.0,0.47951]
[1766154043967,0.00572,88162.0,88153.0,0.06806346]
[1766154044148,0.00572,88162.0,88152.0,0.06806369]
[1766154044380,0.00572,88162.0,88151.0,0.06806495]
[1766154044583,0.00572,88162.0,88150.0,0.0567214]
[1766154044781,0.00572,88162.0,88152.0,0.01134404]
[1766154044998,0.00572,88162.0,88153.0,0.05671954]
[1766154045202,0.00572,88162.0,88152.0,0.06806418]
[1766154045418,0.00572,88162.0,88152.0,0.01134404]
[1766154045590,0.00572,88162.0,88151.0,0.01134417]
[1766154045828,0.00572,88162.0,88152.0,0.01134404]
[1766154046297,0.00572,88162.0,88150.0,0.06806469]
[1766154046511,0.00572,88162.0,88148.0,0.01384455]
[1766154046721,0.00572,88162.0,88149.0,0.01134442]
[1766154047131,0.00572,88162.0,88151.0,0.01134417]
[1766154047334,0.00572,88162.0,88152.0,0.01134404]
[1766154047558,0.00572,88162.0,88151.0,0.01134417]
[1766154047764,0.00572,88162.0,88152.0,0.01134404]
[1766154047984,0.00572,88162.0,88151.0,0.01134417]
[1766154048187,0.00572,88162.0,88152.0,0.01134404]
[1766154048468,0.00572,88162.0,88151.0,0.01134417]
[1766154048680,0.00572,88162.0,88151.0,0.06806452]
[1766154049367,0.00572,88162.0,88151.0,0.01134417]
[1766154049571,0.00572,88162.0,88148.0,0.0025]
[1766154049902,0.00572,88162.0,88148.0,0.07056732]
[1766154050121,0.00572,88162.0,88149.0,0.01134442]
[1766154050532,0.96847,88161.0,88148.0,0.0025]
[1766154050720,0.02284124,88160.0,88148.0,0.0025]
[1766154051161,0.02284124,88160.0,88150.0,0.01134429]
[1766154051535,0.02284124,88160.0,88154.0,0.01134378]
[1766154051784,0.02657635,88162.0,88152.0,0.01134404]
[1766154052071,0.02289824,88161.0,88152.0,0.06806377]
[1766154052304,0.02289824,88161.0,88155.0,0.05671828]
[1766154052456,0.00572,88162.0,88155.0,0.06806193]
[1766154052656,0.00572,88162.0,88154.0,0.01134378]
[1766154053057,0.00572,88162.0,88155.0,0.06806139]
[1766154053259,0.00572,88162.0,88157.0,0.01134339]
[1766154053442,0.00010919,88164.0,88157.0,0.01134339]
[1766154053443,0.00010919,88164.0,88158.0,0.01134327]
[1766154053644,0.47099,88169.0,88159.0,0.97159314]
[1766154053645,0.00572,88163.0,88159.0,0.97159314]
[1766154053971,0.00572,88163.0,88149.0,0.01134442]
[1766154054159,0.969569,88159.0,88150.0,0.0025]
[1766154054310,0.02835817,88158.0,88150.0,0.0025]
[1766154054514,0.00572,88157.0,88149.0,0.00010919]
[1766154054714,0.00572,88157.0,88135.0,0.01134623]
[1766154054715,0.96847,88151.0,88137.0,0.07379574]
[1766154054959,0.96847,88151.0,88140.0,0.0125]
[1766154054960,0.03408074,88150.0,88140.0,0.0125]
[1766154055082,0.03408074,88150.0,88142.0,0.0025]
[1766154055500,0.03408074,88150.0,88137.0,0.01706597]
[1766154055801,0.03408074,88150.0,88144.0,0.05672512]
[1766154056024,0.00572,88150.0,88144.0,0.01134507]
[1766154056225,0.00572,88150.0,88142.0,0.01384532]
[1766154056446,0.00572,88150.0,88142.0,0.0025]
[1766154056623,0.00572,88150.0,88143.0,0.05672599]
[1766154056823,0.00572,88150.0,88142.0,0.01384532]
[1766154057196,0.00572,88150.0,88145.0,0.01134494]
[1766154057380,0.00572,88150.0,88146.0,0.01134481]
[1766154057533,0.49998,88165.0,88149.0,0.01134442]
[1766154057747,0.49998,88165.0,88153.0,0.06806347]
[1766154057748,0.0025,88163.0,88153.0,0.06806347]
[1766154057955,0.00572,88162.0,88152.0,0.96748984]
[1766154058139,0.00572,88162.0,88154.0,0.01134378]
[1766154058577,0.00572,88162.0,88152.0,1.01126423]
[1766154058756,0.00572,88162.0,88152.0,0.95454404]
[1766154058959,0.00572,88162.0,88152.0,0.46235]
[1766154059166,0.01362622,88164.0,88154.0,0.01134378]
[1766154059368,0.00572,88163.0,88155.0,0.06806192]
[1766154059709,0.00572,88163.0,88154.0,0.06806264]
[1766154059856,0.00572,88163.0,88153.0,0.01134391]
[1766154060305,0.00572,88163.0,88158.0,0.06805962]
[1766154060534,0.00572,88163.0,88160.0,0.01134301]
[1766154060663,0.00572,88163.0,88156.0,0.05671761]
[1766154060866,0.00572,88163.0,88157.0,0.05671689]
[1766154061088,0.00572,88163.0,88156.0,0.05671761]
[1766154061293,0.0001091,88165.0,88155.0,0.01134365]
[1766154061294,0.0001091,88165.0,88160.0,0.01134301]
[1766154061543,0.00572,88162.0,88159.0,0.01134314]
[1766154061753,0.0001091,88165.0,88158.0,0.01134327]
[1766154061754,0.0001091,88165.0,88162.0,0.01134275]
[1766154061905,0.04078203,88190.0,88158.0,0.01134327]
[1766154061906,0.00572,88168.0,88160.0,0.05671483]
[1766154062127,0.00572,88168.0,88162.0,0.0567135]
[1766154062325,0.00572,88168.0,88160.0,0.01134301]
[1766154062326,0.00572,88168.0,88161.0,0.01134288]
[1766154062530,0.00572,88168.0,88164.0,0.01134249]
[1766154062869,1.21167,88178.0,88166.0,0.06805344]
[1766154062870,0.00572,88167.0,88166.0,0.06805344]
[1766154063264,0.0454,88179.0,88166.0,0.0126596]
[1766154063265,0.00399943,88172.0,88166.0,0.0126596]
[1766154063404,0.00572,88174.0,88171.0,0.06804921]
[1766154063607,0.00572,88174.0,88169.0,0.06805096]
[1766154063831,0.00572,88174.0,88166.0,0.92593]
[1766154064057,0.001099,88169.0,88166.0,0.92593]
[1766154064598,0.05902622,88179.0,88166.0,0.92593]
[1766154064599,0.01362622,88179.0,88168.0,0.01134198]
[1766154064774,0.00572,88178.0,88172.0,0.06804833]
[1766154064912,0.00572,88178.0,88173.0,0.0567066]
[1766154065112,0.00572,88178.0,88174.0,0.01134121]
[1766154065362,0.07624884,88187.0,88177.0,0.50543082]
[1766154065363,0.02834884,88187.0,88177.0,0.50543082]
[1766154065556,0.02834884,88187.0,88160.0,1.34588706]
[1766154065557,0.00572,88186.0,88179.0,0.92773]
[1766154065759,0.00572,88186.0,88179.0,0.926631]
[1766154065933,0.00572,88186.0,88174.0,0.0025]
[1766154066345,3.8e-06,88187.0,88174.0,0.0025]
[1766154066346,0.01362622,88183.0,88174.0,0.0025]
[1766154066730,0.01362622,88183.0,88164.0,0.05671224]
[1766154066731,0.01362622,88183.0,88160.0,0.42756]
[1766154066732,0.01134056,88179.0,88160.0,0.42756]
[1766154067016,0.01362622,88183.0,88160.0,0.00572]
[1766154067017,0.98059121,88174.0,88160.0,0.00572]
[1766154067185,0.98059121,88174.0,88155.0,0.01]
[1766154067186,0.98059121,88174.0,88153.0,0.06806347]
[1766154067187,0.98287622,88169.0,88153.0,0.06806347]
[1766154067386,0.03407495,88168.0,88154.0,0.01134378]
[1766154067589,0.03407495,88168.0,88153.0,0.06806344]
[1766154067799,0.03407495,88168.0,88153.0,0.01134391]
[1766154068027,0.03407495,88168.0,88155.0,0.42756]
[1766154068226,0.03407495,88168.0,88155.0,0.49562191]
[1766154068378,0.03407495,88168.0,88156.0,0.01134352]
[1766154068583,0.03407495,88168.0,88158.0,0.01134327]
[1766154068763,0.03407495,88168.0,88155.0,0.42756]
[1766154068998,0.03407495,88168.0,88153.0,0.01134391]
[1766154068999,0.96925,88167.0,88153.0,0.0025]
[1766154069197,0.0283556,88166.0,88155.0,0.06806182]
[1766154069396,0.00572,88168.0,88155.0,0.06806182]
[1766154070107,0.03391924,88168.0,88155.0,0.01134365]
[1766154070312,0.00572,88168.0,88159.0,0.0567156]
[1766154070519,0.0025,88176.0,88157.0,0.05671679]
[1766154070520,0.49557979,88185.0,88168.0,0.001099]
[1766154070745,0.03407045,88182.0,88166.0,0.91021]
[1766154071092,0.0025,88181.0,88166.0,0.91021]
[1766154071210,0.0283511,88180.0,88166.0,0.91021]
[1766154071609,0.0283511,88180.0,88166.0,0.92155224]
[1766154072013,0.0283511,88180.0,88167.0,0.01134211]
[1766154072256,0.0283511,88180.0,88166.0,0.91021]
[1766154072634,0.0283511,88180.0,88168.0,0.05670932]
[1766154072834,0.0283511,88180.0,88169.0,0.01134185]
[1766154073036,0.0283511,88180.0,88167.0,0.01293565]
[1766154073240,0.0283511,88180.0,88168.0,0.06805187]
[1766154073479,0.0283511,88180.0,88169.0,0.01134185]
[1766154073695,0.0283511,88180.0,88167.0,0.01293565]
[1766154073896,0.0283511,88180.0,88168.0,0.05670988]
[1766154074191,0.0283511,88180.0,88171.0,0.01134159]
[1766154074353,0.03407045,88182.0,88172.0,0.01134146]
[1766154074555,0.03407045,88182.0,88171.0,0.06804948]
[1766154074874,0.03407045,88182.0,88169.0,0.01134185]
[1766154075022,0.03407045,88182.0,88169.0,0.966919]
[1766154075227,0.03407045,88182.0,88169.0,0.91021]
[1766154075433,0.03407045,88182.0,88169.0,0.92155185]
[1766154075675,0.03407045,88182.0,88169.0,0.96691923]
[1766154075834,0.03407045,88182.0,88170.0,0.01134172]
[1766154076030,0.03407045,88182.0,88171.0,0.01134159]
[1766154076240,0.03407045,88182.0,88170.0,0.01134172]
[1766154076543,0.03407045,88182.0,88171.0,0.01134159]
[1766154076544,0.00572,88182.0,88171.0,0.01134159]
[1766154076707,0.00572,88182.0,88172.0,0.01134146]
[1766154077451,0.00572,88182.0,88172.0,0.02427489]
[1766154077751,0.00572,88182.0,88172.0,0.01134146]
[1766154077940,0.00572,88182.0,88170.0,0.01293343]
[1766154078144,0.00572,88182.0,88167.0,0.01384211]
[1766154078350,0.00572,88182.0,88169.0,0.01134185]
[1766154078547,0.00572,88182.0,88170.0,0.01134172]
[1766154078780,0.00572,88182.0,88170.0,0.06805009]
[1766154078936,0.00572,88182.0,88170.0,0.01134172]
[1766154079135,0.00572,88182.0,88168.0,0.05670986]
[1766154079333,0.00572,88182.0,88168.0,0.06805184]
[1766154079535,0.00572,88182.0,88169.0,0.01134185]
[1766154079745,0.00572,88182.0,88167.0,0.4968]
[1766154080663,0.00572,88182.0,88163.0,0.0025]
[1766154080664,0.01362622,88169.0,88163.0,0.0025]
[1766154080870,0.01362622,88169.0,88162.0,0.41612]
[1766154080871,0.01362622,88169.0,88146.0,0.41612]
[1766154080872,0.02496807,88169.0,88146.0,0.41612]
[1766154081071,0.02496807,88169.0,88149.0,0.05672187]
[1766154081072,0.02835495,88168.0,88149.0,0.05672187]
[1766154081405,0.95217,88166.0,88151.0,0.0025]
[1766154081623,0.02835592,88165.0,88151.0,0.0025]
[1766154081860,0.00572,88167.0,88154.0,0.91042]
[1766154082029,0.00572,88167.0,88155.0,0.01134365]
[1766154082253,0.95217,88166.0,88151.0,0.01384417]
[1766154082390,0.95217,88166.0,88151.0,0.0025]
[1766154082591,0.02751674,88165.0,88151.0,0.0025]
[1766154082992,0.01134275,88162.0,88150.0,0.00572]
[1766154083198,0.01362622,88155.0,88139.0,0.4943]
[1766154083429,0.01362622,88155.0,88140.0,0.0025]
[1766154083430,0.00572,88154.0,88140.0,0.0025]
[1766154083591,0.00572,88154.0,88140.0,0.00822]
[1766154083592,0.03407946,88154.0,88140.0,0.00822]
[1766154084303,0.03407946,88154.0,88140.0,0.00608]
[1766154084705,0.03407946,88154.0,88141.0,0.0025]
[1766154085124,0.03407946,88154.0,88142.0,0.0025]
[1766154085328,0.98624946,88154.0,88142.0,0.0025]
[1766154085648,0.95789,88154.0,88142.0,0.0025]
[1766154086595,0.02835978,88153.0,88142.0,0.0025]
[1766154087106,0.98052978,88153.0,88142.0,0.0025]
[1766154087321,0.01134404,88152.0,88142.0,0.0025]
[1766154087538,0.02567606,88151.0,88142.0,0.0025]
[1766154087712,0.02567606,88151.0,88132.0,0.48419905]
[1766154087713,0.49164,88141.0,88123.0,0.05673843]
[1766154087978,0.01134442,88149.0,88101.0,0.51779316]
[1766154087980,0.00572,88147.0,88142.0,0.86776]
[1766154088189,0.01540746,88161.0,88147.0,0.001099]
[1766154088389,0.00572,88160.0,88144.0,0.01134507]
[1766154088596,0.01540746,88159.0,88145.0,0.01134494]
[1766154088852,0.01540746,88159.0,88134.0,0.01134635]
[1766154088853,0.01362622,88154.0,88134.0,0.01134635]
[1766154089058,0.01362622,88154.0,88141.0,0.01134545]
[1766154089059,0.00572,88153.0,88141.0,0.01134545]
[1766154089227,0.00572,88153.0,88134.0,0.22692536]
[1766154089228,0.95217,88151.0,88134.0,0.22692536]
[1766154089445,0.01540746,88150.0,88133.0,0.37346]
[1766154089646,0.01540746,88150.0,88135.0,0.0025]
[1766154090050,0.01540746,88150.0,88135.0,0.01384623]
[1766154090418,0.01540746,88150.0,88138.0,0.0025]
[1766154090639,0.01362622,88140.0,88127.0,0.01134726]
[1766154090861,0.01362622,88140.0,88109.0,0.08010627]
[1766154090862,0.95217,88137.0,88126.0,0.0001091]
[1766154091073,0.01540746,88136.0,88127.0,0.0025]
[1766154091950,0.00572,88139.0,88130.0,0.0025]
[1766154094018,0.95789,88139.0,88130.0,0.0025]
[1766154094478,0.95789,88139.0,88126.0,0.0001091]
[1766154094479,0.001099,88130.0,88126.0,0.0001091]
[1766154094698,0.00572,88130.0,88118.0,0.00572]
[1766154094906,0.00572,88130.0,88119.0,0.01]
[1766154095342,0.00572,88130.0,88118.0,0.00582888]
[1766154096098,0.00572,88130.0,88118.0,0.00010888]
[1766154096099,0.01362622,88125.0,88118.0,0.00010888]
[1766154096528,0.01430846,88128.0,88118.0,0.00010888]
[1766154096743,0.01430846,88128.0,88118.0,8.8e-07]
[1766154096744,1.00398622,88126.0,88118.0,8.8e-07]
[1766154096959,1.00398622,88126.0,88107.0,0.43844894]
[1766154096960,0.02565597,88125.0,88105.0,0.07382055]
[1766154097179,0.02565597,88125.0,88108.0,0.0113497]
[1766154097180,0.0144175,88125.0,88108.0,0.0113497]
[1766154097390,0.0144175,88125.0,88105.0,0.01707009]
[1766154097391,0.99036,88124.0,88107.0,0.01134983]
[1766154097587,0.49133,88124.0,88106.0,0.01134996]
[1766154097851,0.49903,88123.0,88107.0,0.01134983]
[1766154098074,0.00010904,88125.0,88107.0,0.01134983]
[1766154098367,0.00010904,88125.0,88101.0,0.22701008]
[1766154098368,0.0025,88121.0,88099.0,0.01135086]
[1766154098604,0.0025,88121.0,88101.0,0.0113506]
[1766154098605,1e-06,88107.0,88101.0,0.0113506]
[1766154098751,0.02002846,88120.0,88100.0,0.01135073]
[1766154098752,0.01362622,88112.0,88100.0,0.01135073]
[1766154098963,0.01362622,88112.0,88102.0,0.01385048]
[1766154099144,0.01362622,88112.0,88102.0,0.0025]
[1766154099847,0.01362622,88112.0,88102.0,0.01135048]
[1766154100246,0.01362622,88112.0,88103.0,0.0025]
[1766154100425,0.01362622,88112.0,88100.0,0.06810314]
[1766154100426,0.01362622,88112.0,88100.0,3.14e-06]
[1766154101401,0.54447,88116.0,88100.0,3.14e-06]
[1766154101402,0.01934622,88111.0,88101.0,0.45926]
[1766154101604,0.01934622,88111.0,88102.0,0.02270096]
[1766154102034,0.00572,88111.0,88104.0,0.01135022]
[1766154102244,0.004622,88111.0,88102.0,0.02270096]
[1766154102407,0.004622,88111.0,88103.0,0.0025]
[1766154103446,0.004622,88111.0,88101.0,0.0025]
[1766154104219,0.49903,88116.0,88101.0,0.0025]
[1766154104436,0.01134829,88119.0,88100.0,3.14e-06]
[1766154104437,0.01362622,88112.0,88103.0,0.0025]
[1766154105432,0.001099,88103.0,88101.0,0.0025]
[1766154105720,0.01362622,88112.0,88101.0,0.0025]
[1766154105897,0.01362622,88112.0,88102.0,0.0025]
[1766154106273,0.01362622,88112.0,88102.0,0.01385048]
[1766154106473,0.01362622,88112.0,88103.0,0.01135035]
[1766154106715,0.01362622,88112.0,88102.0,0.0025]
[1766154107141,0.01362622,88112.0,88103.0,0.01135035]
[1766154107549,0.01362622,88112.0,88104.0,0.01135022]
[1766154107750,0.01362622,88112.0,88105.0,0.01135009]
[1766154107931,0.01362622,88112.0,88104.0,0.01135022]
[1766154108129,0.01362622,88112.0,88102.0,0.01385048]
[1766154108341,0.01362622,88112.0,88105.0,0.01135009]
[1766154108541,0.00572,88115.0,88106.0,0.01134996]
[1766154108747,0.00572,88115.0,88106.0,0.06809968]
[1766154108943,0.00572,88115.0,88106.0,0.01134996]
[1766154109732,0.00572,88115.0,88107.0,0.06809836]
[1766154110131,0.04794,88121.0,87980.0,1.7053786]
[1766154110132,0.49133,88133.0,88113.0,0.49406]
[1766154110339,0.01362622,88126.0,88113.0,0.00010904]
[1766154110590,0.00572,88125.0,88113.0,0.00010904]
[1766154111399,0.01430846,88124.0,88113.0,0.00010904]
[1766154113297,1.00466846,88124.0,88113.0,0.00010904]
[1766154113522,0.99036,88124.0,88113.0,0.00010904]
[1766154113658,0.01430846,88123.0,88113.0,0.00010904]
[1766154113861,0.99036,88124.0,88113.0,0.00010904]
[1766154114057,0.01134764,88124.0,88113.0,0.00010904]
[1766154114294,0.00572,88125.0,88113.0,0.00010904]
[1766154114671,0.99036,88124.0,88113.0,0.00010904]
[1766154117834,1.00368731,88123.0,88113.0,0.00010904]
[1766154118006,0.99036,88123.0,88113.0,0.00010904]
[1766154118245,0.01430846,88122.0,88113.0,0.00010904]
[1766154121594,0.49903,88123.0,88113.0,0.00010904]
[1766154122299,0.00572,88125.0,88114.0,0.93488]
[1766154122504,0.00572,88124.0,88116.0,0.92916]
[1766154122720,0.00572,88123.0,88117.0,0.95185709]
[1766154122941,0.00572,88123.0,88113.0,0.0114581]
[1766154122942,0.23826668,88137.0,88113.0,0.0114581]
[1766154122943,0.04147816,88144.0,88113.0,0.00010904]
[1766154123212,0.00572,88136.0,88119.0,0.01]
[1766154123415,0.00572,88135.0,88120.0,0.0025]
[1766154123640,0.01134661,88132.0,88120.0,0.0025]
[1766154123845,0.01134661,88132.0,88116.0,0.02841735]
[1766154123846,0.01430846,88132.0,88116.0,0.00572]
[1766154124028,0.08238817,88132.0,88116.0,0.4351]
[1766154124234,0.02565507,88132.0,88116.0,0.4351]
[1766154124647,0.01134674,88131.0,88116.0,0.4351]
[1766154124857,0.01134674,88131.0,88113.0,0.00010904]
[1766154124858,0.001099,88116.0,88113.0,0.00010904]
[1766154125279,0.00572,88117.0,88113.0,0.00010904]
[1766154126788,0.00572,88117.0,88113.0,0.0114581]
[1766154126992,0.00572,88117.0,88113.0,0.00010904]
[1766154128260,0.00572,88117.0,88113.0,0.0114581]
[1766154128482,0.07057977,88132.0,88113.0,0.0114581]
[1766154128483,0.0025,88135.0,88118.0,0.06808996]
[1766154128698,0.00572,88134.0,88121.0,0.42366]
[1766154129153,0.0025,88133.0,88121.0,0.42366]
[1766154129368,0.00572,88134.0,88122.0,0.50742831]
[1766154129616,0.00572,88133.0,88123.0,0.90882]